bitfinex/quotes_BTCUSD_20220201
["timestamp","ask_amount","ask_price","bid_price","bid_amount"]
[1643690587617,0.614854,38549.0,38546.0,0.064854]
[1643690587923,0.6165385,38549.0,38546.0,0.064854]
[1643690588119,0.6813926,38549.0,38546.0,0.064854]
[1643690588818,0.064856,38548.0,38544.0,0.27022735]
[1643690590218,0.06654053,38548.0,38544.0,0.27022735]
[1643690590422,0.00168453,38548.0,38544.0,0.27022735]
[1643690591066,0.00158139,38548.0,38544.0,0.27022735]
[1643690591268,0.6297081,38549.0,38544.0,0.27022735]
[1643690591468,0.00168453,38548.0,38544.0,0.27022735]
[1643690591670,0.00168453,38548.0,38547.0,0.349287]
[1643690591871,0.00168453,38548.0,38547.0,0.449287]
[1643690592467,0.00168453,38548.0,38547.0,0.67872134]
[1643690592867,0.5,38549.0,38547.0,0.67872134]
[1643690593072,0.5,38549.0,38548.0,0.514125]
[1643690593868,0.5,38549.0,38548.0,0.76131166]
[1643690594718,0.5,38549.0,38548.0,0.81131166]
[1643690598170,0.5,38549.0,38548.0,0.81007148]
[1643690603822,0.5,38549.0,38548.0,0.76131166]
[1643690604223,0.5,38549.0,38548.0,0.414125]
[1643690604823,0.5,38549.0,38548.0,0.064838]
[1643690605668,0.5,38549.0,38545.0,0.12969]
[1643690605868,0.564855,38549.0,38545.0,0.12969]
[1643690606074,0.564855,38549.0,38545.0,0.22969]
[1643690607270,0.56639055,38549.0,38545.0,0.22969]
[1643690607469,0.56639055,38549.0,38545.0,0.12969]
[1643690608170,0.62971204,38549.0,38545.0,0.12969]
[1643690608371,0.62971204,38549.0,38544.0,0.1]
[1643690608372,0.63124759,38549.0,38544.0,0.1]
[1643690608581,0.28837198,38542.0,38534.0,0.57041868]
[1643690608773,0.35323998,38542.0,38534.0,0.57041868]
[1643690609074,0.48298133,38542.0,38534.0,0.57041868]
[1643690609323,0.28189916,38541.0,38534.0,0.57041868]
[1643690609521,0.28189916,38541.0,38536.0,0.129728]
[1643690610324,0.66550526,38541.0,38535.0,0.064873]
[1643690611022,0.66550526,38541.0,38534.0,0.5522]
[1643690613872,0.28189916,38541.0,38535.0,0.064873]
[1643690615370,0.28189916,38541.0,38537.0,0.06487]
[1643690615571,0.19460935,38542.0,38537.0,0.06487]
[1643690616171,0.12973835,38542.0,38537.0,0.06487]
[1643690616374,0.064868,38542.0,38535.0,0.42972884]
[1643690616817,0.064868,38542.0,38537.0,0.064869]
[1643690618018,0.12973678,38542.0,38537.0,0.064869]
[1643690619620,0.19460778,38542.0,38537.0,0.064869]
[1643690620021,0.19449403,38542.0,38535.0,0.064873]
[1643690620971,0.19449403,38542.0,38537.0,0.27510591]
[1643690621178,0.064868,38542.0,38538.0,0.22943434]
[1643690621373,0.064868,38542.0,38537.0,0.27510591]
[1643690621576,0.064868,38542.0,38540.0,0.1]
[1643690621973,0.064868,38542.0,38541.0,0.349287]
[1643690622573,0.064868,38542.0,38540.0,0.164862]
[1643690623074,0.064868,38542.0,38541.0,0.349287]
[1643690623675,0.064868,38542.0,38541.0,0.55043886]
[1643690624741,0.064868,38542.0,38541.0,0.74580896]
[1643690628473,0.064868,38542.0,38541.0,0.39652196]
[1643690629174,0.064868,38542.0,38541.0,0.74580896]
[1643690629776,0.064868,38542.0,38541.0,0.95052573]
[1643690629978,0.064857,38544.0,38542.0,0.064857]
[1643690630178,0.5,38549.0,38543.0,0.69014807]
[1643690630377,0.00141305,38547.0,38543.0,0.69014807]
[1643690630977,0.00141305,38547.0,38544.0,0.29442432]
[1643690631177,0.00141305,38547.0,38546.0,0.349287]
[1643690631381,0.5,38549.0,38546.0,0.349287]
[1643690631382,0.5,38549.0,38546.0,0.67872134]
[1643690631578,0.5,38549.0,38547.0,0.349287]
[1643690631821,0.5,38549.0,38548.0,0.349287]
[1643690632221,0.5,38549.0,38548.0,0.51413]
[1643690634922,0.5,38549.0,38548.0,0.51182523]
[1643690635222,0.5,38549.0,38548.0,0.71785926]
[1643690636375,0.5,38549.0,38548.0,0.51182523]
[1643690636575,0.5,38549.0,38548.0,1.88682523]
[1643690636778,0.4283118,38549.0,38548.0,1.88682523]
[1643690638476,0.4283118,38549.0,38548.0,0.51182523]
[1643690638677,0.4283118,38549.0,38548.0,0.72981748]
[1643690641332,0.4283118,38549.0,38548.0,0.41182523]
[1643690641528,0.4283118,38549.0,38548.0,0.51182523]
[1643690642129,0.4283118,38549.0,38548.0,0.51175044]
[1643690642332,0.4283118,38549.0,38548.0,0.164843]
[1643690642729,0.4283118,38549.0,38548.0,0.064843]
[1643690643677,0.4283118,38549.0,38548.0,0.41413]
[1643690643875,0.4283118,38549.0,38548.0,0.51413]
[1643690644073,0.4283118,38549.0,38548.0,0.50913]
[1643690646074,0.4283118,38549.0,38548.0,0.159843]
[1643690646274,0.4283118,38549.0,38548.0,0.059843]
[1643690646474,0.4283118,38549.0,38548.0,0.40913]
[1643690646919,0.4283118,38549.0,38548.0,0.50913]
[1643690655822,0.4283118,38549.0,38548.0,0.55913]
[1643690665973,0.42823578,38549.0,38548.0,0.55913]
[1643690668577,0.42823578,38549.0,38548.0,0.50913]
[1643690668976,0.42823578,38549.0,38548.0,0.159843]
[1643690669322,0.42823578,38549.0,38548.0,0.059843]
[1643690673072,0.42823578,38549.0,38548.0,0.05601606]
[1643690673374,0.42823578,38549.0,38548.0,0.40530306]
[1643690673773,0.42823578,38549.0,38548.0,0.50530306]
[1643690685627,0.02035841,38561.0,38548.0,0.65720306]
[1643690685828,0.02035841,38561.0,38553.0,1.375]
[1643690686027,0.04043862,38561.0,38557.0,1.724287]
[1643690686227,0.04043862,38561.0,38560.0,0.399287]
[1643690686427,0.00564435,38562.0,38560.0,0.399287]
[1643690686630,0.00564435,38562.0,38561.0,0.44688719]
[1643690686827,0.00564435,38562.0,38561.0,0.54688719]
[1643690687626,0.02182555,38567.0,38561.0,0.54688719]
[1643690688083,0.02182555,38567.0,38561.0,0.75130395]
[1643690688477,0.02182555,38567.0,38561.0,0.81611795]
[1643690689479,0.00090295,38566.0,38564.0,0.064816]
[1643690690479,0.002,38569.0,38564.0,0.064816]
[1643690690681,0.00168475,38567.0,38564.0,0.064816]
[1643690691681,0.002,38569.0,38564.0,0.064816]
[1643690691929,0.00168474,38567.0,38564.0,0.064816]
[1643690692925,0.002,38569.0,38564.0,0.064816]
[1643690693128,0.06650474,38567.0,38564.0,0.064816]
[1643690694127,0.06482,38567.0,38564.0,0.064816]
[1643690694326,0.06632827,38567.0,38564.0,0.064816]
[1643690695326,0.06482,38567.0,38564.0,0.064816]
[1643690695578,0.06632827,38567.0,38564.0,0.064816]
[1643690696471,0.06482,38567.0,38564.0,0.064816]
[1643690696872,0.06632827,38567.0,38564.0,0.064816]
[1643690697673,0.06482,38567.0,38564.0,0.064816]
[1643690697872,0.06636797,38567.0,38564.0,0.064816]
[1643690698873,0.06482,38567.0,38564.0,0.064816]
[1643690699321,0.06636797,38567.0,38564.0,0.064816]
[1643690700023,0.002,38569.0,38564.0,0.064816]
[1643690700226,0.066823,38569.0,38564.0,0.064816]
[1643690700422,0.00154797,38567.0,38564.0,0.064816]
[1643690701221,0.066823,38569.0,38564.0,0.064816]
[1643690701622,0.066823,38569.0,38564.0,0.26746592]
[1643690701623,0.00153904,38567.0,38564.0,0.26746592]
[1643690701823,0.00153904,38567.0,38564.0,0.36746592]
[1643690702024,0.00153904,38567.0,38564.0,0.164816]
[1643690703776,0.002,38569.0,38564.0,0.164816]
[1643690703977,0.00153904,38567.0,38564.0,0.164816]
[1643690704377,0.00153904,38567.0,38564.0,0.064816]
[1643690704577,0.00153904,38567.0,38564.0,0.164816]
[1643690704778,0.00153904,38567.0,38564.0,0.42173232]
[1643690704982,0.002,38569.0,38564.0,0.214816]
[1643690705178,0.00143679,38567.0,38564.0,0.214816]
[1643690706180,0.002,38569.0,38564.0,0.214816]
[1643690706480,0.00143679,38567.0,38564.0,0.214816]
[1643690706928,0.00143679,38567.0,38564.0,0.42095049]
[1643690707327,0.002,38569.0,38564.0,0.214816]
[1643690707531,0.002,38569.0,38564.0,0.27315149]
[1643690707728,0.00143679,38567.0,38566.0,0.064818]
[1643690708326,0.00143679,38567.0,38566.0,0.30607331]
[1643690708528,0.002,38569.0,38566.0,0.30607331]
[1643690708927,0.00151242,38568.0,38566.0,0.30607331]
[1643690709127,0.00151242,38568.0,38567.0,0.08270636]
[1643690709627,0.00151242,38568.0,38567.0,0.32627778]
[1643690709830,0.002,38569.0,38567.0,0.32627778]
[1643690709831,0.002,38569.0,38568.0,0.064817]
[1643690710032,0.00351241,38569.0,38568.0,0.064817]
[1643690710873,0.002,38569.0,38568.0,0.064817]
[1643690711275,0.00188943,38569.0,38568.0,0.064817]
[1643690711673,0.00188943,38569.0,38568.0,0.61388865]
[1643690711974,0.00188943,38569.0,38568.0,0.414104]
[1643690712173,0.00188943,38569.0,38568.0,0.51006498]
[1643690712373,0.00188943,38569.0,38568.0,0.16077798]
[1643690712876,0.30188943,38569.0,38568.0,0.16077798]
[1643690713275,0.30188943,38569.0,38568.0,0.064817]
[1643690713276,0.00188943,38569.0,38568.0,0.064817]
[1643690714828,0.00188943,38569.0,38568.0,0.30838842]
[1643690717128,0.24401729,38573.0,38568.0,0.30838842]
[1643690717328,0.00154063,38570.0,38568.0,0.30838842]
[1643690718176,0.24401729,38573.0,38568.0,0.30838842]
[1643690718375,0.00154062,38571.0,38568.0,0.56377714]
[1643690718975,0.06635962,38571.0,38568.0,0.56377714]
[1643690719374,0.064819,38571.0,38568.0,0.56377714]
[1643690719575,0.00154061,38571.0,38570.0,0.10241539]
[1643690719976,0.00154061,38571.0,38570.0,0.2242011]
[1643690720177,0.00154061,38571.0,38570.0,0.34598681]
[1643690720575,0.24401729,38573.0,38571.0,0.064815]
[1643690720774,0.24401729,38573.0,38571.0,0.03045087]
[1643690720775,0.3515406,38572.0,38571.0,0.03045087]
[1643690720976,0.3515406,38572.0,38571.0,0.01980423]
[1643690721478,0.4015406,38572.0,38571.0,0.01980423]
[1643690721678,0.4015406,38572.0,38570.0,0.24357142]
[1643690721679,0.4161006,38572.0,38570.0,0.24357142]
[1643690721929,0.01456,38571.0,38570.0,0.24357142]
[1643690722129,0.05,38572.0,38570.0,0.24357142]
[1643690722329,0.51456,38571.0,38570.0,0.24357142]
[1643690722831,0.56456,38571.0,38570.0,0.24357142]
[1643690723430,0.06456,38571.0,38570.0,0.24357142]
[1643690723631,0.01456,38571.0,38570.0,0.24357142]
[1643690724334,0.45164516,38573.0,38570.0,0.24357142]
[1643690724533,0.0161006,38572.0,38570.0,0.24357142]
[1643690724739,1.07070043,38571.0,38570.0,0.24357142]
[1643690724937,1.13716043,38571.0,38570.0,0.24357142]
[1643690726376,1.13716043,38571.0,38560.0,0.064836]
[1643690726377,1.04680562,38561.0,38560.0,0.064836]
[1643690726578,1.04680562,38561.0,38558.0,0.01959444]
[1643690726579,1.22620662,38561.0,38558.0,0.01959444]
[1643690726780,0.06646,38560.0,38558.0,0.01959444]
[1643690727377,0.34794574,38560.0,38558.0,0.01959444]
[1643690727576,0.41279306,38560.0,38558.0,0.01959444]
[1643690728678,0.064848,38558.0,38553.0,0.064847]
[1643690728878,0.116748,38558.0,38553.0,0.29641329]
[1643690729524,0.00139682,38557.0,38553.0,0.29641329]
[1643690730126,0.00139682,38557.0,38553.0,0.23156629]
[1643690730525,0.12968925,38557.0,38553.0,0.23156629]
[1643690730732,0.1312301,38557.0,38553.0,0.23156629]
[1643690731727,0.17968925,38557.0,38553.0,0.23156629]
[1643690732129,0.2460771,38557.0,38553.0,0.64648585]
[1643690732329,0.2460771,38557.0,38554.0,0.1]
[1643690732330,0.06638585,38557.0,38554.0,0.1]
[1643690732529,0.06638585,38557.0,38555.0,0.349287]
[1643690732729,0.06638585,38557.0,38554.0,0.1]
[1643690732929,0.064845,38557.0,38554.0,0.1]
[1643690733184,0.064845,38557.0,38555.0,0.349287]
[1643690733386,0.064845,38557.0,38555.0,0.064838]
[1643690734184,0.064845,38557.0,38554.0,0.1]
[1643690735584,0.06633441,38557.0,38554.0,0.1]
[1643690736485,0.064845,38557.0,38554.0,0.1]
[1643690736687,0.064845,38557.0,38555.0,0.064839]
[1643690736926,0.06633441,38557.0,38555.0,0.064839]
[1643690737529,0.00148941,38557.0,38555.0,0.064839]
[1643690737926,0.064833,38559.0,38555.0,0.064839]
[1643690738327,0.29048676,38558.0,38555.0,0.064839]
[1643690738531,0.29048676,38558.0,38554.0,0.1]
[1643690738532,0.42016776,38558.0,38554.0,0.1]
[1643690738730,0.42016776,38558.0,38547.0,0.1589203]
[1643690738928,0.42016776,38558.0,38543.0,0.5434]
[1643690739129,0.42016776,38558.0,38545.0,0.06056397]
[1643690739527,0.42016776,38558.0,38547.0,0.54780314]
[1643690739727,0.42016776,38558.0,38547.0,0.88908049]
[1643690740132,0.06484688,38555.0,38552.0,0.09376094]
[1643690740328,0.064845,38554.0,38553.0,0.27837474]
[1643690740783,0.00153903,38554.0,38553.0,0.37837474]
[1643690740986,0.00153903,38554.0,38553.0,0.72766174]
[1643690741583,0.129681,38558.0,38554.0,0.064837]
[1643690741783,0.00140669,38555.0,38554.0,0.164837]
[1643690742783,0.064837,38557.0,38554.0,0.164837]
[1643690743186,0.00140668,38556.0,38554.0,0.164837]
[1643690743385,0.00140668,38556.0,38554.0,0.064837]
[1643690743585,0.00140668,38556.0,38554.0,0.164837]
[1643690744429,0.06624367,38557.0,38554.0,0.164837]
[1643690745231,0.064837,38557.0,38554.0,0.164837]
[1643690745430,0.06625051,38557.0,38554.0,0.164837]
[1643690746434,0.064837,38557.0,38554.0,0.164837]
[1643690746632,0.06625051,38557.0,38554.0,0.064837]
[1643690746832,0.06625051,38557.0,38554.0,0.164837]
[1643690747531,0.064837,38557.0,38554.0,0.164837]
[1643690747732,0.06625051,38557.0,38554.0,0.164837]
[1643690748583,0.06625051,38557.0,38554.0,0.064837]
[1643690748781,0.064837,38557.0,38554.0,0.064837]
[1643690748983,0.06637785,38557.0,38554.0,0.064837]
[1643690750081,0.064837,38557.0,38554.0,0.064837]
[1643690750283,0.06637785,38557.0,38554.0,0.064837]
[1643690751282,0.064837,38557.0,38554.0,0.064837]
[1643690751493,0.00154085,38557.0,38554.0,0.064837]
[1643690752325,0.0648423,38559.0,38554.0,0.064837]
[1643690752723,0.00154085,38557.0,38554.0,0.064837]
[1643690753524,0.06484236,38558.0,38554.0,0.064837]
[1643690753924,0.00154085,38557.0,38553.0,0.69757083]
[1643690754723,0.06484236,38558.0,38553.0,0.69757083]
[1643690754924,0.00154085,38557.0,38553.0,0.69757083]
[1643690755323,0.00154085,38557.0,38553.0,0.76241283]
[1643690755977,0.06484236,38558.0,38553.0,0.76241283]
[1643690756178,0.00154085,38557.0,38553.0,1.04539812]
[1643690757179,0.06484236,38558.0,38553.0,1.04539812]
[1643690757580,0.00154085,38557.0,38553.0,1.04539812]
[1643690757780,0.00154085,38557.0,38553.0,0.99539812]
[1643690758283,0.00154085,38557.0,38553.0,0.27837474]
[1643690758482,0.06484236,38558.0,38553.0,0.27837474]
[1643690758680,0.00154085,38557.0,38553.0,0.27837474]
[1643690759081,0.00154085,38557.0,38553.0,0.34321774]
[1643690759526,0.06484236,38558.0,38553.0,0.34321774]
[1643690759727,0.06484236,38558.0,38553.0,0.39321774]
[1643690759929,0.00139877,38557.0,38553.0,0.39321774]
[1643690760429,0.00139877,38557.0,38554.0,0.1]
[1643690760831,0.06484236,38558.0,38554.0,0.1]
[1643690761028,0.00139876,38557.0,38554.0,0.1]
[1643690762030,0.06484236,38558.0,38554.0,0.1]
[1643690762229,0.00139876,38557.0,38554.0,0.1]
[1643690762830,0.00139876,38557.0,38553.0,0.39321774]
[1643690763279,0.06484236,38558.0,38553.0,0.39321774]
[1643690763480,0.0014926,38557.0,38553.0,0.39321774]
[1643690764583,0.06484236,38558.0,38553.0,0.34321774]
[1643690764780,0.0014926,38557.0,38553.0,0.34321774]
[1643690764981,0.0014926,38557.0,38553.0,0.064843]
[1643690764982,0.24455878,38557.0,38553.0,0.064843]
[1643690765181,0.24455878,38557.0,38548.0,0.12969]
[1643690765182,0.27473754,38556.0,38548.0,0.12969]
[1643690765385,0.01449073,38555.0,38546.0,0.4863]
[1643690765581,0.0519,38554.0,38545.0,0.02030636]
[1643690765782,0.014492,38553.0,38545.0,0.02030636]
[1643690765980,0.27391219,38549.0,38545.0,0.02030636]
[1643690766180,0.33877229,38549.0,38543.0,0.5434]
[1643690766829,0.33877229,38549.0,38543.0,0.0031]
[1643690767529,0.21425829,38548.0,38543.0,0.0031]
[1643690768329,0.21425829,38548.0,38543.0,0.067959]
[1643690768730,0.21332179,38548.0,38543.0,0.0031]
[1643690768931,0.20993096,38548.0,38543.0,0.0031]
[1643690769336,0.85,38546.0,38539.0,0.064861]
[1643690769536,0.1,38542.0,38537.0,0.00641754]
[1643690769735,1.09283862,38545.0,38536.0,0.0011]
[1643690769736,0.7,38540.0,38536.0,0.0011]
[1643690769931,0.99183862,38541.0,38534.0,0.0053]
[1643690769932,0.29473862,38539.0,38534.0,0.0053]
[1643690770132,0.0519,38538.0,38534.0,0.0053]
[1643690770332,0.51326981,38537.0,38534.0,0.0053]
[1643690770589,0.066392,38536.0,38534.0,0.0053]
[1643690771682,0.0519,38536.0,38534.0,0.0053]
[1643690772981,0.0519,38536.0,38534.0,0.10176669]
[1643690774184,0.0519,38536.0,38534.0,0.0053]
[1643690778179,0.0519,38536.0,38535.0,0.349279]
[1643690778481,0.0519,38536.0,38534.0,0.0053]
[1643690781582,0.0648722,38541.0,38534.0,0.0053]
[1643690781832,0.00167747,38539.0,38534.0,0.0053]
[1643690782732,0.06487614,38539.0,38534.0,0.0053]
[1643690783032,0.06638038,38539.0,38535.0,0.00119375]
[1643690783830,0.06487614,38539.0,38534.0,0.0053]
[1643690784031,0.06487614,38539.0,38535.0,0.00119374]
[1643690784331,0.06638039,38539.0,38535.0,0.00119374]
[1643690785135,0.06487614,38539.0,38534.0,0.0053]
[1643690785333,0.06638039,38539.0,38535.0,0.00119374]
[1643690786387,0.06487614,38539.0,38534.0,0.0053]
[1643690786589,0.06641938,38539.0,38535.0,0.00127172]
[1643690786988,0.27451035,38539.0,38535.0,0.00127172]
[1643690787489,0.27447369,38539.0,38534.0,0.0053]
[1643690787690,0.06487614,38539.0,38535.0,0.00127172]
[1643690787888,0.27511551,38539.0,38535.0,0.00127172]
[1643690788091,0.06641938,38539.0,38535.0,0.00127172]
[1643690788289,0.27787857,38539.0,38535.0,0.00127172]
[1643690788695,0.27633533,38539.0,38534.0,0.0053]
[1643690788891,0.06487614,38539.0,38534.0,0.0053]
[1643690789091,0.06641938,38539.0,38535.0,0.00127172]
[1643690789350,0.28089453,38539.0,38535.0,0.00127172]
[1643690789651,0.06641938,38539.0,38535.0,0.00127172]
[1643690790051,0.06641938,38539.0,38534.0,0.0053]
[1643690790052,0.06487614,38539.0,38534.0,0.0053]
[1643690790254,0.06641061,38539.0,38535.0,0.00125417]
[1643690791053,0.27847762,38539.0,38535.0,0.00125417]
[1643690791255,0.67479085,38536.0,38534.0,0.0053]
[1643690791453,0.67479085,38536.0,38535.0,0.00125417]
[1643690791454,0.61335728,38536.0,38535.0,0.00125417]
[1643690791854,0.21335728,38536.0,38535.0,0.00125417]
[1643690792054,0.12976342,38537.0,38535.0,0.00125417]
[1643690792255,0.33912302,38537.0,38535.0,0.00125417]
[1643690792456,0.27832214,38536.0,38534.0,0.0053]
[1643690792655,0.27825596,38536.0,38534.0,0.00655422]
[1643690793095,0.61373576,38535.0,38534.0,0.00655422]
[1643690793494,0.62822776,38535.0,38534.0,0.0053]
[1643690794091,3.04865514,38535.0,38534.0,0.0053]
[1643690795292,0.52366789,38535.0,38534.0,0.0053]
[1643690795495,0.34445614,38537.0,38534.0,0.0053]
[1643690795892,0.33872884,38537.0,38534.0,0.0053]
[1643690796092,0.33872884,38537.0,38534.0,0.00655817]
[1643690796293,0.07945748,38536.0,38534.0,0.00655817]
[1643690796491,0.57199056,38537.0,38534.0,0.00655817]
[1643690796698,0.33872884,38537.0,38534.0,0.00655817]
[1643690796936,0.12976342,38537.0,38534.0,0.00655817]
[1643690797136,0.12976342,38537.0,38534.0,0.0053]
[1643690797336,0.34045661,38537.0,38534.0,0.0053]
[1643690797536,0.4395478,38537.0,38534.0,0.00655728]
[1643690797838,0.25624711,38536.0,38534.0,0.00655728]
[1643690798040,0.22631647,38535.0,38534.0,0.00655728]
[1643690798636,0.47631647,38535.0,38534.0,0.00655728]
[1643690798938,0.47631647,38535.0,38534.0,0.0053]
[1643690799138,0.52821647,38535.0,38534.0,0.0053]
[1643690799539,0.066392,38535.0,38534.0,0.0053]
[1643690799938,0.28467669,38535.0,38534.0,0.0053]
[1643690800787,0.53467669,38535.0,38534.0,0.0053]
[1643690801388,0.28467669,38535.0,38534.0,0.0053]
[1643690802391,0.33467669,38535.0,38534.0,0.0031]
[1643690802591,0.58467669,38535.0,38534.0,0.0031]
[1643690802993,0.30346498,38534.0,38530.0,0.0022]
[1643690803196,0.26493561,38532.0,38530.0,0.0022]
[1643690803691,0.31493561,38532.0,38530.0,0.0022]
[1643690804093,0.31493561,38532.0,38530.0,0.0019]
[1643690804538,0.31493561,38532.0,38530.0,0.0016]
[1643690804738,0.26493561,38532.0,38530.0,0.0016]
[1643690804938,0.26493561,38532.0,38530.0,0.0013]
[1643690805339,0.26493561,38532.0,38530.0,0.001]
[1643690805539,0.014492,38531.0,38530.0,0.0007]
[1643690805744,0.014492,38531.0,38530.0,0.0004]
[1643690806140,0.014492,38531.0,38530.0,0.0001]
[1643690806342,0.014492,38531.0,38529.0,0.00173036]
[1643690806343,0.07938877,38531.0,38529.0,0.00173036]
[1643690806541,0.014492,38530.0,38529.0,0.00143036]
[1643690806741,0.464492,38530.0,38529.0,0.00113036]
[1643690806941,0.464492,38530.0,38529.0,0.0002]
[1643690807143,0.064492,38530.0,38528.0,0.00535763]
[1643690807343,0.20980255,38529.0,38528.0,0.00535763]
[1643690807543,0.22429455,38529.0,38528.0,0.00505763]
[1643690807742,0.22429455,38529.0,38528.0,0.00475763]
[1643690808183,0.22429455,38529.0,38528.0,0.0032]
[1643690808387,0.22429455,38529.0,38528.0,0.0029]
[1643690808785,0.22429455,38529.0,38528.0,0.0026]
[1643690808982,0.22429455,38529.0,38528.0,0.0023]
[1643690809182,0.22429455,38529.0,38528.0,0.002]
[1643690809582,0.22429455,38529.0,38528.0,0.0017]
[1643690809783,0.22429455,38529.0,38528.0,0.0014]
[1643690810185,0.22429455,38529.0,38528.0,0.0011]
[1643690810385,0.22429455,38529.0,38528.0,0.0008]
[1643690810583,0.22429455,38529.0,38528.0,0.0005]
[1643690810784,0.22429455,38529.0,38528.0,0.0002]
[1643690811186,0.22429455,38529.0,38527.0,0.00439252]
[1643690811386,0.20980255,38529.0,38527.0,0.00409252]
[1643690811587,0.34526136,38530.0,38527.0,0.00379252]
[1643690811835,0.34526136,38530.0,38527.0,0.0021]
[1643690812236,0.34526136,38530.0,38527.0,0.0018]
[1643690812437,0.23671374,38528.0,38527.0,0.0015]
[1643690812638,0.23671374,38528.0,38527.0,0.0012]
[1643690812837,0.23671374,38528.0,38527.0,0.0009]
[1643690813037,0.23671374,38528.0,38527.0,0.0003]
[1643690813641,0.23671374,38528.0,38526.0,0.00202107]
[1643690813842,0.3016075,38528.0,38526.0,0.00172107]
[1643690814039,0.3016075,38528.0,38526.0,0.00142107]
[1643690814240,0.06489376,38528.0,38525.0,0.0022]
[1643690814444,0.28658814,38526.0,38525.0,0.00282109]
[1643690814642,0.28658814,38526.0,38525.0,0.00252109]
[1643690814842,0.28658814,38526.0,38525.0,0.00222109]
[1643690815141,0.28658814,38526.0,38525.0,0.00192109]
[1643690815342,0.28658814,38526.0,38525.0,0.00162109]
[1643690815593,0.28658814,38526.0,38525.0,0.0004]
[1643690815785,0.28658814,38526.0,38525.0,0.0001]
[1643690815986,0.28658814,38526.0,38524.0,0.0018]
[1643690816191,0.41637003,38526.0,38524.0,0.0015]
[1643690816386,0.41637003,38526.0,38524.0,0.0012]
[1643690816785,0.41637003,38526.0,38524.0,0.0009]
[1643690816985,0.41637003,38526.0,38524.0,0.0006]
[1643690817185,0.48126058,38526.0,38524.0,0.0003]
[1643690817386,0.48126058,38526.0,38523.0,0.0042]
[1643690817885,0.48126058,38526.0,38523.0,0.0039]
[1643690818086,0.48126058,38526.0,38523.0,0.0036]
[1643690819187,0.48126058,38526.0,38523.0,0.00513402]
[1643690819641,0.48126058,38526.0,38524.0,0.349279]
[1643690819839,0.48126058,38526.0,38523.0,0.00513402]
[1643690820239,0.48126058,38526.0,38523.0,0.0036]
[1643690820441,0.48126058,38526.0,38523.0,0.00513402]
[1643690820640,0.48126058,38526.0,38524.0,0.349279]
[1643690821441,0.19467244,38526.0,38524.0,0.349279]
[1643690826692,0.19467244,38526.0,38524.0,0.414166]
[1643690826948,0.19467244,38526.0,38525.0,0.349279]
[1643690827344,0.19467244,38526.0,38525.0,0.449279]
[1643690827546,0.06489055,38526.0,38525.0,0.79678002]
[1643690829050,0.06489055,38526.0,38525.0,0.93707259]
[1643690829447,0.06489055,38526.0,38525.0,0.79678002]
[1643690830048,0.06489055,38526.0,38525.0,0.93989954]
[1643690830247,0.06489055,38526.0,38525.0,0.79678002]
[1643690830447,0.06489055,38526.0,38525.0,0.93891821]
[1643690830687,0.06489055,38526.0,38525.0,0.79678002]
[1643690831189,0.06489055,38526.0,38525.0,0.69678002]
[1643690832392,0.06489055,38526.0,38525.0,0.349279]
[1643690832587,0.06489055,38526.0,38524.0,0.00153398]
[1643690833187,0.28394194,38526.0,38524.0,0.00153398]
[1643690833587,0.28394194,38526.0,38523.0,0.0036]
[1643690833886,0.28394194,38526.0,38523.0,0.005134]
[1643690834537,0.06489055,38526.0,38523.0,0.005134]
[1643690834739,0.06489055,38526.0,38524.0,0.349279]
[1643690835941,0.20811848,38525.0,38524.0,0.349279]
[1643690836140,0.20811848,38525.0,38523.0,0.005134]
[1643690837039,0.20811848,38525.0,38523.0,0.0036]
[1643690837642,0.06489055,38526.0,38523.0,0.0036]
[1643690838689,0.06482218,38526.0,38523.0,0.00513402]
[1643690839590,0.06482218,38526.0,38523.0,0.0036]
[1643690839790,0.06482218,38526.0,38523.0,0.00513402]
[1643690839993,0.06482218,38526.0,38523.0,0.07002302]
[1643690840793,0.06482218,38526.0,38523.0,0.068489]
[1643690840993,0.06482218,38526.0,38523.0,0.07002302]
[1643690842045,0.06482218,38526.0,38523.0,0.068489]
[1643690842241,0.06482218,38526.0,38524.0,0.349279]
[1643690842640,0.06482218,38526.0,38524.0,0.399279]
[1643690842841,0.06482218,38526.0,38524.0,0.58972367]
[1643690847095,0.06409262,38526.0,38524.0,0.58972367]
[1643690848895,0.06409262,38526.0,38524.0,0.79138736]
[1643690849095,0.06409262,38526.0,38524.0,0.58972367]
[1643690855990,0.06409262,38526.0,38523.0,0.06973997]
[1643690856391,0.06409262,38526.0,38523.0,0.068489]
[1643690856594,0.06409262,38526.0,38523.0,0.06963574]
[1643690856835,0.33690446,38526.0,38523.0,0.06963574]
[1643690857642,0.33690446,38526.0,38523.0,0.0683832]
[1643690857837,0.33690446,38526.0,38523.0,0.06970175]
[1643690858240,0.06409262,38526.0,38523.0,0.06970175]
[1643690858439,0.06409262,38526.0,38524.0,0.349279]
[1643690859742,0.06409262,38526.0,38523.0,0.06970174]
[1643690860041,2.21190596,38526.0,38523.0,0.06844921]
[1643690860245,0.014492,38525.0,38523.0,0.06844921]
[1643690860441,0.014492,38525.0,38523.0,0.06970139]
[1643690860687,0.13908941,38526.0,38523.0,0.06970139]
[1643690861088,0.13908941,38526.0,38523.0,0.13459139]
[1643690861386,0.13908941,38526.0,38523.0,0.13333921]
[1643690861585,0.13908941,38526.0,38523.0,0.1345914]
[1643690862486,0.13908941,38526.0,38523.0,0.13333921]
[1643690862686,0.13908941,38526.0,38523.0,0.1345914]
[1643690863687,0.06409262,38526.0,38523.0,0.36640428]
[1643690863887,0.06409262,38526.0,38524.0,0.349279]
[1643690869386,0.06409262,38526.0,38523.0,0.41765652]
[1643690869686,0.06409262,38526.0,38523.0,0.41640428]
[1643690869885,0.06409262,38526.0,38523.0,0.41765652]
[1643690870986,0.06409262,38526.0,38523.0,0.36640428]
[1643690871187,0.06409262,38526.0,38523.0,0.36765654]
[1643690871387,0.06409262,38526.0,38523.0,0.41765654]
[1643690871841,0.06409262,38526.0,38523.0,0.13459147]
[1643690872042,0.06409262,38526.0,38523.0,0.13333921]
[1643690872241,0.06409262,38526.0,38523.0,0.13459147]
[1643690873240,0.06409262,38526.0,38523.0,0.13333921]
[1643690873444,0.06409262,38526.0,38523.0,0.12959147]
[1643690874442,0.06409262,38526.0,38523.0,0.12833921]
[1643690874642,0.06409262,38526.0,38523.0,0.12959147]
[1643690875788,0.06409262,38526.0,38523.0,0.12833921]
[1643690876091,0.06409262,38526.0,38523.0,0.12959147]